Cogmind - Beta 14 @@@ ROGUE MODE // 2024.08.21 @ 16:23:45 Player: Gabri Result: Destroyed by MV-NUJ(R) with Subdweller Laser Performance ------------- Evolutions (0) 0 Regions Visited (2) 400 Robots Destroyed (11) 55 Value Destroyed (195) 195 Prototype IDs (0) 0 Alien Tech Used (0) 0 Bonus (0) 0 TOTAL SCORE: 650 Bonus ------- None Cogmind --------- Core Integrity 0/250 Matter 294/300 Energy 114/125 System Corruption 0% Temperature Cool (16) Movement Rolling (100) Location -10/Subcaves Parts ------- > --- POWER (1) -------- Light Ion Engine > --- PROPULSION (2) --- Spiked Treads Compact Wheel > --- UTILITY (2) ------ Small Storage Unit Subdweller Optics > --- WEAPON (2) ------- Subdweller Laser Battle Rifle > --- INVENTORY (8) ---- Light Ion Engine Light Treads Huge Storage Unit Seismic Detector Seismic Detector Particle Gun Subdweller Machine Gun Grenade Launcher Peak State ------------ > --- POWER ------------ Light Ion Engine > --- PROPULSION ------- Spiked Treads Compact Wheel > --- UTILITY ---------- Small Storage Unit Subdweller Optics > --- WEAPON ----------- Subdweller Laser Battle Rifle > --- INVENTORY -------- Light Ion Engine Light Treads Huge Storage Unit Seismic Detector Seismic Detector Particle Gun Subdweller Machine Gun Grenade Launcher [Rating: 12] Favorites ----------- Power Ion Engine Engine Ion Engine Propulsion Compact Wheel Treads Spiked Treads Wheel Compact Wheel Utility Small Storage Unit Device Seismic Detector Storage Small Storage Unit Weapon Small Laser Energy Gun Small Laser Ballistic Gun Light Assault Rifle Build | -11 -10 -10 ------- Run | Yrd Mat Sub Slots Evolved . | . . . Power . | . . . Propulsion . | . . . Utility . | . . . Weapon . | . . . Parts Attached 19 | 8 3 8 Power 2 | 1 1 . Engine 2 | 1 1 . Core . | . . . Reactor . | . . . Propulsion 6 | 2 1 3 Treads 2 | . . 2 Leg . | . . . Wheel 4 | 2 1 1 Hover . | . . . Flight . | . . . Utility 5 | 3 . 2 Device 4 | 2 . 2 Storage 1 | 1 . . Processor . | . . . Hackware . | . . . Protection . | . . . Artifact . | . . . Weapon 6 | 2 1 3 Energy Gun 3 | 1 1 1 Energy Cannon . | . . . Ballistic Gun 3 | 1 . 2 Ballistic Cannon . | . . . Launcher . | . . . Special Weapon . | . . . Impact Weapon . | . . . Slashing Weapon . | . . . Piercing Weapon . | . . . Special Melee Weapon . | . . . Unidentified Prototypes . | . . . Parts Lost 3 | . 3 . Power 1 | . 1 . Propulsion 2 | . 2 . Utility . | . . . Weapon . | . . . Highest Loss Streak 2 | . 2 . To Critical Strikes . | . . . Average Slot Usage (%) 96 | . 95 99 Engine 14 | . 14 14 Treads 4 | . . 14 Wheel 21 | . 24 13 Device 13 | . 14 13 Storage 14 | . 14 14 Energy Gun 13 | . 13 14 Ballistic Gun 14 | . 14 14 Peak Build Rating 12 | 9 8 12 Average Rating 7 | 5 7 9 On Entrance 4 | . 7 7 Naked Turns . | . . . Heaviest Build 16 | 13 13 16 Greatest Support 26 | 26 26 16 Greatest Overweight (x) 4 | . . 4 Average Overweight (x) . | . . . Largest Inventory Capacity 8 | 8 8 8 Average Capacity 7 | 7 8 8 Most Carried 8 | 5 8 8 Average Carried 6 | 2 7 7 Final Capacity 8 | 8 8 8 Final Carried 8 | 5 8 8 Class Distribution -------------------- 100% | Mutant Dominant Class ---------------- Mutant | -10/Materials Mutant | -10/Subcaves Resources | -11 -10 -10 ----------- Run | Yrd Mat Sub Matter Collected 409 | 133 163 113 Remotely . | . . . Salvage Created 257 | 20 191 46 Parts 27 | 7 18 2 Haulers Intercepted . | . . . Recyclers Shooed 1 | . 1 . Parts Field Recycled . | . . . Retrieved Matter . | . . . Parts Self-Destructed . | . . . Prevented . | . . . Kills | -11 -10 -10 ------- Run | Yrd Mat Sub Combat Hostiles Destroyed 9 | . 8 1 Guns 8 | . 7 1 AOE 1 | . 1 . Classes Destroyed 4 | 1 2 1 Tunneler 2 | 2 . . Swarmer 6 | . 6 . Grunt 2 | . 2 . Subdweller 1 | . . 1 Best Kill Streak 3 | 1 3 1 Combat Bots Only 3 | . 3 1 Max Kills in Single Turn 1 | 1 1 1 Gunslinging . | . . . Exploded 1 | . 1 . Melee . | . . . Uniques/NPCs Destroyed . | . . . Combat | -11 -10 -10 -------- Run | Yrd Mat Sub Hostile Shots Fired 51 | . 39 12 Missed 15 | . 11 4 Damage Taken 538 | . 365 173 Core 255 | . 143 112 Absorbed by Shields . | . . . Core Remaining (%) 100 | 100 . . Volleys Fired 39 | 4 24 11 Largest 2 | 2 2 2 Hottest 85 | 60 60 85 Shots Fired 70 | 8 43 19 Gun 70 | 8 43 19 Cannon . | . . . Launcher . | . . . Special . | . . . Kinetic 36 | 4 24 8 Thermal 34 | 4 19 11 Explosive . | . . . Electromagnetic . | . . . Robot Hit Streak 15 | 3 10 15 Robot Miss Streak 2 | 1 2 1 Penetration Max . | . . . Secondary Targets . | . . . Shots Hit Robots 50 | 5 30 15 Core Hits 20 | 3 12 5 Critical Kills . | . . . Critical Parts Destroyed 1 | 1 . . Critical Strikes 1 | 1 . . Destroy 1 | 1 . . Melee Attacks . | . . . Impact . | . . . Slashing . | . . . Piercing . | . . . Sneak Attacks . | . . . Combat Hostiles . | . . . Follow-up Attacks . | . . . Damage Inflicted 503 | 47 291 165 Guns 503 | 47 291 165 Cannons . | . . . Explosions . | . . . Melee . | . . . Ramming . | . . . Kinetic 222 | 25 132 65 Thermal 281 | 22 159 100 Explosive . | . . . Electromagnetic . | . . . Impact . | . . . Slashing . | . . . Piercing . | . . . Highest Corruption . | . . . Average Corruption . | . . . Corruption Purged . | . . . Corruption Blocked . | . . . Overload Shots . | . . . Overflow Damage . | . . . Projectiles . | . . . Explosions . | . . . Melee . | . . . Knockbacks . | . . . Impact . | . . . Kinetic . | . . . Secondary . | . . . Self-Inflicted Damage . | . . . Shots . | . . . Rammed . | . . . Targets Rammed . | . . . Kicked . | . . . Crushed . | . . . Highest Temperature 103 | 20 103 14 Average Temperature 34 | 15 38 11 Received Heat Transfer 162 | . 132 30 Siege Activations . | . . . Robots Corrupted . | . . . Combat Hostiles . | . . . Parts Fried . | . . . Impact Corruptions . | . . . Robots Melted . | . . . Combat Hostiles . | . . . Parts Melted . | . . . Heat Transferred 575 | 50 350 175 Parts Sabotaged . | . . . Parts Stolen . | . . . Parts Stripped . | . . . Power Chain Reactions . | . . . Alert | -11 -10 -10 ------- Run | Yrd Mat Sub Peak Influence 215 | 10 215 . Initial 6 | . 6 . Average 98 | 3 115 . Maximum Alert Level 1 | . 1 . Low Security (%) 93 | 100 92 . Level 1 6 | . 7 . Level 2 . | . . . Level 3 . | . . . Level 4 . | . . . Level 5 . | . . . High Security . | . . . Max Security . | . . . Squads Dispatched . | . . . Investigation . | . . . Extermination . | . . . Reinforcement . | . . . Assault . | . . . Garrison . | . . . Intercept . | . . . Searches Triggered . | . . . Construction Impeded . | . . . Haulers Reinforced . | . . . Active Scanning Responses . | . . . Cargo Convoy Interrupts . | . . . Stealth | -11 -10 -10 --------- Run | Yrd Mat Sub Distress Signals 2 | . 2 . Communications Jammed . | . . . Distress Signals . | . . . Times Spotted 13 | . 10 3 Peak Tracking Total 4 | . 4 2 Tactical Retreats 2 | . 2 . Traps | -11 -10 -10 ------- Run | Yrd Mat Sub Traps Triggered . | . . . Indirectly . | . . . Trap Hack Attempts . | . . . Triggered . | . . . Disarmed . | . . . Reprogrammed . | . . . Reused . | . . . Traps Extracted . | . . . Installed . | . . . Triggered . | . . . Machines | -11 -10 -10 ---------- Run | Yrd Mat Sub Machines Disabled . | . . . Max in Single Turn . | . . . Machines Repaired . | . . . Machines Dismantled . | . . . Machines Sabotaged . | . . . Overloaded Fab Kills . | . . . Hacking | -11 -10 -10 --------- Run | Yrd Mat Sub Machines Accessed 2 | . 2 . Terminals 2 | . 2 . Fabricators . | . . . Repair Stations . | . . . Recycling Units . | . . . Scanalyzers . | . . . Garrison Access . | . . . Total Hacks 5 | . 5 . Successful 3 | . 3 . Failed 2 | . 2 . Catastrophic . | . . . Database Lockouts . | . . . Manual 2 | . 2 . Terminals 5 | . 5 . Fabricators . | . . . Repair Stations . | . . . Recycling Units . | . . . Scanalyzers . | . . . Garrison Access . | . . . Terminal Hacks 1 | . 1 . Zone Layout 1 | . 1 . Fabricator Hacks . | . . . Repair Station Hacks . | . . . Recycling Unit Hacks . | . . . Scanalyzer . | . . . Garrison Access Hacks . | . . . Unauthorized Hacks 2 | . 2 . Terminals 2 | . 2 . Botnet 2 | . 2 . Fabricators . | . . . Repair Stations . | . . . Recycling Units . | . . . Scanalyzers . | . . . Garrison Access . | . . . Data Cores Recovered . | . . . Used . | . . . Hacking Detections 2 | . 2 . Full Trace Events . | . . . Feedback Events . | . . . Feedback Blocked . | . . . Robot Schematics Acquired . | . . . Robots Built . | . . . Authchips . | . . . Time . | . . . Total Robot Build Rating . | . . . Part Schematics Acquired . | . . . Parts Built . | . . . Authchips . | . . . Time . | . . . Total Part Build Rating . | . . . Parts Repaired . | . . . Time . | . . . Parts Recycled . | . . . Recycled Matter . | . . . Retrieved Matter . | . . . Retrieved Components . | . . . Parts Scanalyzed . | . . . Part Schematics Acquired . | . . . Parts Damaged . | . . . Bothacking | -11 -10 -10 ------------ Run | Yrd Mat Sub Used RIF Installer . | . . . Robots Hacked . | . . . Non-combat . | . . . Combat . | . . . Robot Hacks Applied . | . . . Relay Couplers Released . | . . . Fabnet Peak Effective % . | . . . Robots Rewired . | . . . Allies Hacked . | . . . Hacks Repelled . | . . . Allies | -11 -10 -10 -------- Run | Yrd Mat Sub Total Allies . | . . . Largest Group . | . . . Highest-Rated Group . | . . . Highest-Rated Ally . | . . . Total Orders . | . . . Ally Attacks . | . . . Total Damage . | . . . Kills . | . . . Allies Corrupted . | . . . Allies Melted . | . . . Intel | -11 -10 -10 ------- Run | Yrd Mat Sub Robot Analysis Total . | . . . Derelict Logs Recovered . | . . . Drone Launches . | . . . Drone Recoveries . | . . . Exploration | -11 -10 -10 ------------- Run | Yrd Mat Sub Turns Passed 736 | 83 466 187 Spaces Moved 530 | 62 340 128 Core 3 | 2 . 1 Treads . | . . . Legs . | . . . Wheels 527 | 60 340 127 Hover . | . . . Flight . | . . . Fastest Speed 50 | 50 90 100 Average Speed 93 | 89 91 101 Slowest Speed 250 | 100 100 250 Overloaded Moves . | . . . Propulsion Burnouts . | . . . Robots Hopped . | . . . Cave-ins Triggered . | . . . Exploration Rate (%) 16 | 4 37 8 Regions Visited 2 Branch Regions 1 Pre-discovered Areas 1 | . . 1 Known Exits Taken . | . . . Unknown Exits Taken 2 | 1 1 . Scrap Searched 4 | . . 4 Spaces Dug . | . . . Terrain Destroyed . | . . . Melee . | . . . Projectile . | . . . AOE . | . . . Terrain Rammed . | . . . Walls Destroyed . | . . . Machines Disabled . | . . . Actions | -11 -10 -10 --------- Run | Yrd Mat Sub Total 705 | 78 457 170 Wait 99 | . 85 14 Move 528 | 61 339 128 Hop . | . . . Pick Up 10 | 4 5 1 Fast Attach 13 | 8 . 5 Attach 4 | . 3 1 Detach 4 | 1 1 2 Swap 2 | . . 2 Drop 6 | . . 6 Fire 39 | 4 24 11 Melee . | . . . Ram . | . . . Kick . | . . . Crush . | . . . Escape Stasis . | . . . Rewire . | . . . Trap . | . . . Miscellaneous . | . . . Route ------- -11/Scrapyard -10/Materials (discovered 3 exits: [*Min x2] / [*Sub]) -10/Subcaves History --------- Turn | Location | Event 24 | -11/Scrapyard | Discovered new exit (range 16) 84 | -11/Scrapyard | Entered Materials 154 | -10/Materials | Discovered new exit (range 13) 267 | -10/Materials | Discovered new exit (range 15) 306 | -10/Materials | Build established: Mutant 427 | -10/Materials | Core integrity fell below 50% 527 | -10/Materials | Discovered new exit (range 6) 550 | -10/Materials | Entered Subcaves 558 | -10/Subcaves | Learned location of Zion (-7) 558 | -10/Subcaves | Met a Zionite searching for "candidates" 569 | -10/Subcaves | Disturbed a concealed Subdweller 706 | -10/Subcaves | Ambushed by Subdwellers from Twisted Machinery 707 | -10/Subcaves | Core integrity fell below 20% 737 | -10/Subcaves | Destroyed by MV-NUJ(R) with Subdweller Laser Last Messages --------------- 00635_ Dropped Imp. Terrain Scanner. 00639_ Acquired Spk. Treads. 00643_ Searching scrap... 00643_ Found Battle Rifle. 00643_ Found 52 Matter. 00644_ Acquired 20 matter. 00645_ Dropped Assault Rifle. 00646_ Dropped Sml. Laser. 00649_ Acquired Sub. Laser. 00654_ Searching scrap... 00654_ Found Battle Rifle. 00654_ Found Sub. Machine Gun. 00654_ Found 45 Matter. 00655_ Acquired 20 matter. 00656_ Dropped Lgt. Assault Rifle. 00658_ Acquired Sub. Machine Gun. 00665_ Subatomizers dissect the Disposable Heat Sink. 00706_ MV-NUJ(R) emerges from the Twisted Machinery. Map ----- +----------------------------------------------------+ | ??????? ? ????????????????????????????????? | | ???????? ? ????????????????????????????????? | | ????????? #???????????????????????????????? | | ????????? "" #??????????????????????????????? | | ?????????? "" #?????????????????????????????? | | ??????????? " ####?????????????????????????? | | ????????????#" ##????????????????????????? | | ????????????#" #?????????????????#####??? | | ?????????????? #????????????????##%#|##?? | | ??????????????? ?????????????????#%&*[%#?? | | ????????????????? ?????????????????##"[###?? | | ??????????????????# #?????????????????###!%#??? | | ???????????????????# #?????????????????# # ###?# | | ???????????????????# #?????????????????# "[" ### | | ???????????????????## #????????????????## [ ## | | ??????????????????### #????????????????# | | ????????????????### #????????????????## | | ????????????????# #?????????????????# | | ?????????"?????##" # ###??????????????## | | ?????????""???##""" ### #????????????### | | ?????????"""### """ ## #???????????## | | ???????????# """ """##???????????# ## | | ???????????## "" ""##????????????# #### | | ????????????## "" ##???########### ###### | | ?????????????## """ ###### # ## #??? | | ??????????????### "" #@ # ## #?? | | ????????????????# "" R #? #?? | | ????????????????# R # # ##?? | | ???????????????# ## ###### ###### ##? #??? | | ???????????????###########????###????######??##??? | | ?????????????????????????????????????????????????? | | ?????????????????????????????????????????????????? | | ?????????????????????????????????????????????????? | | ?????????????????????????????????????????????????? | | ?????????????????????????????????????????????????? | | ?????????????????????????????????????????????????? | | ?????????????????????????????????????????????????? | | ?????????????????????????????????????????????????? | | ?????????????????????????????????????????????????? | | ?????????????????????????????????????????????????? | | ?????????????????????????????????????????????????? | | ?????????????????????????????????????????????????? | | ?????????????????????????????????????????????????? | | ?????????????????????????????????????????????????? | | | | | | | | | | | | | +----------------------------------------------------+ Best States ------------- Heat Dissipation 25 Energy Generation 10 Energy Capacity 250 Matter Stores 300 Matter Capacity 300 Sight Range 21 Terrain Scan Range 16 Terrain Scan Density 10 Evasion (%) 42 Recoil Reduction 1 Item Schematics ----------------- None Robot Schematics ------------------ None Fabricated ------------ Nothing Alien Tech Used ----------------- None Achievements -------------- None Challenges ------------ None Game ------ Seed DisruptorSurveybotCore Manual? 0 Play Time 00:09:09 Cumulative 19.6 hours Start 2024.08.21 @ 16:14:47 End 2024.08.21 @ 16:23:45 Sessions 1 Manual Loads 0 Difficulty Rogue Special Mode None Game No. 18 Rogue 18 Adventurer 0 Explorer 0 Win Type - Total 1 Types 1/0/0/0/0/0/0/0/0 Lore% 12 Gallery% 23 Achievement% 21 Wizard Run 0 Options --------- Layout 1 ASCII 0 Keyboard 1 Movement Numpad Keybinds 1 Fullscreen 1 Font 24/Smallcaps Map View 50x35 Zoom Use 0% Tactical HUD 1 Map Filters NONE Filters NONE Steam 1 RUN: 2398e886-4318-4236-a777-2142471421d0